bitfinex/quotes_BTCUSD_20251212
["timestamp","ask_amount","ask_price","bid_price","bid_amount"]
[1765532808429,0.009,92215.0,92213.0,0.21688915]
[1765532808634,0.005,92215.0,92213.0,0.21688915]
[1765532808809,0.008,92215.0,92213.0,0.21688915]
[1765532809158,0.003,92215.0,92213.0,0.21688915]
[1765532809385,0.01712,92216.0,92213.0,0.21688915]
[1765532809386,0.01712,92216.0,92215.0,0.21688445]
[1765532810041,0.01712,92217.0,92216.0,0.0108441]
[1765532810243,0.01723679,92217.0,92216.0,0.0108441]
[1765532812023,0.02123679,92217.0,92216.0,0.0108441]
[1765532813791,0.02523679,92217.0,92216.0,0.0118441]
[1765532814937,0.00811679,92217.0,92216.0,0.0118441]
[1765532816074,0.00811679,92217.0,92216.0,0.01269043]
[1765532816272,0.00811679,92217.0,92216.0,0.05581841]
[1765532816873,0.00811679,92217.0,92216.0,0.01269043]
[1765532817149,0.00811679,92217.0,92216.0,0.01169043]
[1765532817150,0.00411679,92217.0,92216.0,0.01169043]
[1765532817390,0.00411679,92217.0,92216.0,0.01269043]
[1765532817805,0.00011679,92217.0,92216.0,0.01269043]
[1765532819291,0.00011679,92217.0,92216.0,0.03980055]
[1765532822390,0.00011679,92217.0,92216.0,0.04690349]
[1765532822615,0.00111679,92217.0,92216.0,0.04790349]
[1765532822852,0.00111679,92217.0,92216.0,0.04792769]
[1765532823067,0.00111679,92217.0,92216.0,0.09005567]
[1765532823488,0.00111679,92217.0,92216.0,0.09105567]
[1765532823786,0.00011679,92217.0,92216.0,0.09105567]
[1765532823991,0.00111679,92217.0,92216.0,0.09105567]
[1765532824720,0.00011679,92217.0,92216.0,0.09005567]
[1765532824860,0.00011679,92217.0,92216.0,0.38275567]
[1765532825056,0.00011679,92217.0,92216.0,0.37562853]
[1765532829582,0.00011679,92217.0,92216.0,0.41555572]
[1765532829808,0.00011679,92217.0,92216.0,0.50870209]
[1765532833289,0.00011679,92217.0,92216.0,1.50870209]
[1765532833515,0.00011679,92217.0,92216.0,1.51954184]
[1765532836306,0.00011679,92217.0,92216.0,0.51954184]
[1765532836554,0.00011679,92217.0,92216.0,1.51654184]
[1765532836756,0.00011679,92217.0,92216.0,1.51954184]
[1765532836969,0.00111679,92217.0,92216.0,1.52354184]
[1765532845007,0.00111679,92217.0,92216.0,0.52354184]
[1765532845210,0.00111679,92217.0,92216.0,0.54062184]
[1765532847246,0.00111679,92217.0,92216.0,0.49749386]
[1765532847455,0.00111679,92217.0,92216.0,0.54062184]
[1765532854580,0.00111679,92217.0,92216.0,1.54062184]
[1765532854768,0.0002632,92217.0,92216.0,1.54062184]
[1765532856640,0.0002632,92217.0,92216.0,0.54062184]
[1765532856863,0.0002632,92217.0,92216.0,1.54062184]
[1765532857451,0.0002632,92217.0,92216.0,1.63801529]
[1765532858223,4.197e-05,92217.0,92216.0,1.54062184]
[1765532859652,4.197e-05,92217.0,92216.0,0.54062184]
[1765532859860,4.197e-05,92217.0,92216.0,1.54062184]
[1765532864881,6.457e-05,92220.0,92219.0,0.04312798]
[1765532865098,6.457e-05,92220.0,92219.0,1.39290321]
[1765532865312,6.457e-05,92220.0,92219.0,1.3846927]
[1765532865966,6.457e-05,92220.0,92219.0,1.60156774]
[1765532866422,6.457e-05,92220.0,92219.0,1.63611507]
[1765532867036,0.00106457,92220.0,92219.0,1.64011507]
[1765532868342,0.00016712,92220.0,92219.0,1.64011507]
[1765532873983,0.00016712,92220.0,92219.0,0.64011507]
[1765532874285,0.00016712,92220.0,92219.0,1.64011507]
[1765532874941,3.953e-05,92220.0,92219.0,1.64011507]
[1765532877175,0.0108394,92256.0,92252.0,0.01083987]
[1765532877460,0.01160593,92256.0,92254.0,0.02711012]
[1765532877837,0.22839582,92256.0,92254.0,0.02711012]
[1765532878741,0.23239582,92256.0,92254.0,0.02711012]
[1765532878939,0.01560593,92256.0,92254.0,0.02711012]
[1765532879520,0.00676653,92256.0,92254.0,0.02711012]
[1765532879686,0.00476653,92256.0,92254.0,0.02711012]
[1765532879853,0.00476653,92256.0,92254.0,0.24390089]
[1765532880056,0.00776653,92256.0,92254.0,0.24390089]
[1765532880278,0.00776653,92256.0,92254.0,0.02711012]
[1765532880482,0.00076653,92256.0,92254.0,0.02711012]
[1765532880904,0.00176653,92256.0,92254.0,0.02711012]
[1765532881450,0.22055636,92256.0,92254.0,0.02711012]
[1765532881603,0.21855636,92256.0,92254.0,0.02711012]
[1765532882003,0.0108414,92239.0,92235.0,0.07802042]
[1765532882264,0.01084093,92243.0,92237.0,0.31781012]
[1765532882422,0.01084104,92242.0,92239.0,0.0108414]
[1765532882969,0.01084046,92247.0,92243.0,0.21681665]
[1765532883171,0.01084034,92248.0,92245.0,0.01084069]
[1765532884152,0.01084022,92249.0,92245.0,0.22765413]
[1765532884360,0.001,92248.0,92245.0,0.01084069]
[1765532884566,0.22764692,92249.0,92245.0,0.01084069]
[1765532885009,0.01284034,92248.0,92245.0,0.01084069]
[1765532885311,0.002,92248.0,92246.0,0.21681156]
[1765532886172,0.003,92248.0,92246.0,0.21681156]
[1765532886374,0.001,92248.0,92246.0,0.21681156]
[1765532886909,0.002,92248.0,92247.0,0.01084046]
[1765532887129,0.001,92248.0,92247.0,0.01084046]
[1765532887486,0.002,92248.0,92247.0,0.01084046]
[1765532887896,0.001,92248.0,92247.0,0.01084046]
[1765532888236,0.003,92248.0,92247.0,0.01084046]
[1765532889066,0.002,92248.0,92247.0,0.01084046]
[1765532889498,0.003,92248.0,92247.0,0.01909951]
[1765532890133,0.01083975,92253.0,92250.0,0.0108401]
[1765532890333,0.01083975,92253.0,92252.0,0.02711012]
[1765532891836,0.01083999,92251.0,92247.0,0.01084046]
[1765532892043,0.22764391,92250.0,92246.0,0.01084057]
[1765532893273,0.22864391,92250.0,92246.0,0.01084057]
[1765532893654,0.00080906,92248.0,92246.0,0.01084057]
[1765532893848,0.22864391,92250.0,92246.0,0.01084057]
[1765532894110,0.0108401,92250.0,92247.0,0.01084046]
[1765532894401,0.002,92250.0,92248.0,0.01084034]
[1765532895523,0.01083987,92252.0,92248.0,0.01084034]
[1765532895706,0.001,92250.0,92248.0,0.01084034]
[1765532896112,0.01083999,92251.0,92248.0,0.01084034]
[1765532896319,0.0108401,92250.0,92247.0,0.01084046]
[1765532896521,0.0138401,92250.0,92247.0,0.01084046]
[1765532896927,0.002,92250.0,92247.0,0.22764807]
[1765532897140,0.01083999,92251.0,92248.0,0.01084034]
[1765532897351,0.01183999,92251.0,92248.0,0.01084034]
[1765532897547,0.002,92250.0,92248.0,0.01084034]
[1765532898726,0.01083999,92251.0,92248.0,0.01084034]
[1765532898884,0.01083999,92251.0,92244.0,0.01084081]
[1765532898885,0.22864226,92250.0,92244.0,0.01084081]
[1765532899087,0.00078018,92247.0,92246.0,0.21681156]
[1765532899513,0.00078018,92247.0,92244.0,0.22765543]
[1765532899721,0.01084034,92248.0,92244.0,0.01084081]
[1765532899890,0.0007224,92245.0,92244.0,0.01084081]
[1765532902615,0.0017224,92245.0,92244.0,0.01084081]
[1765532907084,0.0017224,92245.0,92244.0,0.0216808]
[1765532908541,0.0007224,92245.0,92244.0,0.0216808]
[1765532908844,0.0017224,92245.0,92244.0,0.0216808]
[1765532911263,0.0017224,92245.0,92244.0,0.06480878]
[1765532911464,0.0007224,92245.0,92244.0,0.06480878]
[1765532911723,0.0017224,92245.0,92244.0,0.06565511]
[1765532912932,0.0007224,92245.0,92244.0,0.06665511]
[1765532914114,0.0007224,92245.0,92244.0,0.35735511]
[1765532931550,0.0007224,92245.0,92244.0,0.4073735]
[1765532932497,0.0007224,92245.0,92244.0,0.48534099]
[1765532933293,0.0007224,92245.0,92244.0,0.48434099]
[1765532933627,0.0007224,92245.0,92244.0,0.48934099]
[1765532933855,0.0007224,92245.0,92244.0,0.48734099]
[1765532934072,0.0007224,92245.0,92244.0,0.4083735]
[1765532934427,0.0007224,92245.0,92244.0,0.4063735]
[1765532934611,0.0007224,92245.0,92244.0,0.4113735]
[1765532935011,0.0007224,92245.0,92244.0,0.4093735]
[1765532935274,0.0007224,92245.0,92244.0,0.4063735]
[1765532935453,0.0007224,92245.0,92244.0,0.48903754]
[1765532936563,0.0007224,92245.0,92244.0,0.49203754]
[1765532936767,0.0007224,92245.0,92244.0,0.49303754]
[1765532941543,0.0007224,92245.0,92244.0,0.49203754]
[1765532942803,0.0007224,92245.0,92244.0,0.48903754]
[1765532943183,0.0007224,92245.0,92244.0,0.49103754]
[1765532945060,0.00888004,92263.0,92244.0,0.48019673]
[1765532945336,0.01083846,92264.0,92262.0,0.02711012]
[1765532946109,0.00051996,92263.0,92262.0,0.02711012]
[1765532947047,0.00051996,92263.0,92262.0,0.05964951]
[1765532947657,0.00251996,92263.0,92262.0,0.05964951]
[1765532949184,0.00351996,92263.0,92262.0,0.05964951]
[1765532949552,0.00351996,92263.0,92262.0,0.11094428]
[1765532949750,0.00351996,92263.0,92262.0,0.40164428]
[1765532949974,0.00351996,92263.0,92262.0,0.39432382]
[1765532950352,0.00251996,92263.0,92262.0,0.39432382]
[1765532950583,0.00251996,92263.0,92262.0,0.3672137]
[1765532950778,0.00251996,92263.0,92262.0,0.32408572]
[1765532951099,0.00051996,92263.0,92262.0,0.32408572]
[1765532951340,0.00151996,92263.0,92262.0,0.32408572]
[1765532951859,0.00151996,92263.0,92262.0,0.3672137]
[1765532952506,0.00051996,92263.0,92262.0,0.3672137]
[1765532952957,0.00151996,92263.0,92262.0,0.3672137]
[1765532953114,0.00051996,92263.0,92262.0,0.3672137]
[1765532953528,0.00251996,92263.0,92262.0,0.3672137]
[1765532953897,0.00151996,92263.0,92262.0,0.3672137]
[1765532956419,0.00251996,92263.0,92262.0,0.3672137]
[1765532958590,0.00151996,92263.0,92262.0,0.3672137]
[1765532959645,0.00251996,92263.0,92262.0,0.3672137]
[1765532961212,0.00251996,92263.0,92262.0,0.32408572]
[1765532961418,0.00151996,92263.0,92262.0,0.32408572]
[1765532961809,0.00151996,92263.0,92262.0,0.41723209]
[1765532962227,0.00051996,92263.0,92262.0,0.41723209]
[1765532962585,0.00151996,92263.0,92262.0,0.41723209]
[1765532962931,0.00051996,92263.0,92262.0,0.41723209]
[1765532963131,0.00051996,92263.0,92262.0,0.41923209]
[1765532963380,0.00051996,92263.0,92262.0,0.42323209]
[1765532963634,0.00051996,92263.0,92262.0,0.42123209]
[1765532963837,0.00051996,92263.0,92262.0,0.42323209]
[1765532964352,0.00051996,92263.0,92262.0,0.42123209]
[1765532964739,0.00051996,92263.0,92262.0,0.41723209]
[1765532964948,0.00051996,92263.0,92262.0,0.42123209]
[1765532965540,0.00051996,92263.0,92262.0,0.42323209]
[1765532965722,0.00051996,92263.0,92262.0,0.42123209]
[1765532966116,0.00051996,92263.0,92262.0,0.42323209]
[1765532969367,0.00051996,92263.0,92262.0,0.44031209]
[1765532974473,0.00012411,92263.0,92262.0,1.44031209]
[1765532974676,0.0004,92270.0,92269.0,0.38384637]
[1765532974959,0.0004,92270.0,92269.0,0.41180282]
[1765532975395,0.0004,92270.0,92269.0,0.49754587]
[1765532975584,0.00023105,92271.0,92269.0,0.92944587]
[1765532975784,0.0004,92290.0,92289.0,0.09314637]
[1765532975982,0.0004,92290.0,92289.0,0.63685028]
[1765532976200,0.0004,92290.0,92289.0,0.62851337]
[1765532976439,0.0004,92290.0,92289.0,0.63284984]
[1765532976649,0.0004,92290.0,92289.0,1.63284984]
[1765532976855,0.0004,92290.0,92289.0,1.26104984]
[1765532977068,0.0004,92290.0,92289.0,1.27765423]
[1765532977476,0.0004,92290.0,92289.0,1.27965423]
[1765532977886,0.0004,92290.0,92289.0,1.31675423]
[1765532978096,0.0004,92290.0,92289.0,1.14865423]
[1765532978411,0.0004,92290.0,92289.0,1.14965423]
[1765532978651,0.0004,92290.0,92289.0,1.22527311]
[1765532978807,0.0004,92290.0,92289.0,1.14765423]
[1765532979008,0.0004,92290.0,92289.0,1.14965423]
[1765532980215,0.0004,92290.0,92289.0,1.22720933]
[1765532981493,0.00094861,92290.0,92289.0,1.14965423]
[1765532981722,0.00094861,92290.0,92289.0,1.22720933]
[1765532982371,0.00094861,92290.0,92289.0,1.14965423]
[1765532984041,0.00094861,92290.0,92289.0,1.65245423]
[1765532990440,0.00094861,92290.0,92289.0,1.60932625]
[1765532990698,0.00094861,92290.0,92289.0,1.65245423]
[1765532993483,0.00094861,92290.0,92289.0,1.73000933]
[1765532993909,0.00094861,92290.0,92289.0,1.65245423]
[1765532994348,0.00094861,92290.0,92289.0,1.73000933]
[1765532995300,0.00094861,92290.0,92289.0,0.73000933]
[1765532995486,0.00094861,92290.0,92289.0,1.73000933]
[1765532996365,0.00094861,92290.0,92289.0,1.65245423]
[1765533001419,0.00094861,92290.0,92289.0,0.65245423]
[1765533001629,0.00094861,92290.0,92289.0,1.65245423]
[1765533002598,0.00094861,92290.0,92289.0,0.65245423]
[1765533002883,0.00094861,92290.0,92289.0,1.65245423]
[1765533003306,0.00094861,92290.0,92289.0,1.74997975]
[1765533003485,0.0004,92300.0,92299.0,0.60053344]
[1765533003703,0.0004,92320.0,92319.0,0.30978649]
[1765533003901,0.0004,92320.0,92319.0,0.69614276]
[1765533003902,0.0007897,92320.0,92319.0,0.69614276]
[1765533004262,0.0007897,92320.0,92319.0,0.62274758]
[1765533004681,0.0007897,92320.0,92319.0,1.62274758]
[1765533005079,1e-08,92330.0,92329.0,0.60046303]
[1765533005262,1e-08,92330.0,92329.0,1.60130936]
[1765533005263,0.00011688,92330.0,92329.0,1.60130936]
[1765533005812,0.00011688,92330.0,92329.0,1.60564334]
[1765533007125,1e-08,92330.0,92329.0,1.70568738]
[1765533007313,1e-08,92330.0,92329.0,1.60864334]
[1765533007517,1e-08,92330.0,92329.0,1.60564334]
[1765533007921,1e-08,92330.0,92329.0,1.61064334]
[1765533008378,1e-08,92330.0,92329.0,1.61264334]
[1765533008590,1e-08,92330.0,92329.0,1.61064334]
[1765533008992,1e-08,92330.0,92329.0,1.61464334]
[1765533009205,0.0004,92340.0,92339.0,0.2165932]
[1765533009425,0.0004,92340.0,92339.0,0.6183659]
[1765533009656,0.0004,92360.0,92349.0,0.60041612]
[1765533009859,0.0004,92360.0,92349.0,0.60126245]
[1765533010064,0.00213115,92350.0,92349.0,0.60126245]
[1765533010273,0.0004,92360.0,92359.0,0.60039267]
[1765533010485,0.00051667,92360.0,92359.0,0.618319]
[1765533010696,0.00080507,92360.0,92359.0,0.618319]
[1765533010965,0.00080507,92360.0,92359.0,1.618319]
[1765533011166,0.00080507,92360.0,92359.0,1.69781838]
[1765533011583,0.00080507,92360.0,92359.0,0.99821838]
[1765533011788,0.00080507,92360.0,92359.0,0.98111838]
[1765533012222,0.00080507,92360.0,92359.0,1.69781838]
[1765533012886,0.00080507,92360.0,92359.0,1.70081838]
[1765533013085,0.00080507,92360.0,92359.0,1.68773838]
[1765533013314,0.00080507,92360.0,92359.0,1.70181838]
[1765533013587,0.00080507,92360.0,92359.0,0.87671838]
[1765533014001,0.00080507,92360.0,92359.0,0.87971838]
[1765533014446,0.00080507,92360.0,92359.0,1.69781838]
[1765533014803,0.00080507,92360.0,92359.0,1.70381838]
[1765533015003,0.00080507,92360.0,92359.0,1.70081838]
[1765533015207,0.00080507,92360.0,92359.0,1.84641838]
[1765533015412,1e-08,92360.0,92359.0,1.84941838]
[1765533015817,0.0004,92390.0,92359.0,1.84941838]
[1765533015818,0.0004,92390.0,92369.0,0.50722285]
[1765533016057,0.0004,92390.0,92369.0,0.60121555]
[1765533016220,0.0004,92390.0,92369.0,0.74681555]
[1765533017314,0.0004,92390.0,92389.0,0.55719437]
[1765533017536,0.00051665,92390.0,92389.0,0.61824868]
[1765533017994,0.00051665,92390.0,92389.0,0.62258034]
[1765533018955,0.00051665,92390.0,92389.0,1.62258034]
[1765533019169,0.00151665,92390.0,92389.0,1.70555305]
[1765533019664,0.00151665,92390.0,92389.0,0.90594949]
[1765533019866,0.00051665,92390.0,92389.0,0.90594949]
[1765533020083,0.0004,92400.0,92399.0,1.60029892]
[1765533020307,0.0004,92410.0,92409.0,0.6002755]
[1765533020529,0.0004,92420.0,92419.0,1.60025208]
[1765533020745,0.00078876,92420.0,92419.0,1.60109841]
[1765533020960,0.00078876,92420.0,92419.0,1.60542801]
[1765533021372,0.0004,92430.0,92429.0,1.60022867]
[1765533021579,0.00051658,92430.0,92429.0,0.618155]
[1765533023455,0.00051658,92430.0,92429.0,1.618155]
[1765533023683,0.00151658,92430.0,92429.0,1.618155]
[1765533025162,0.00151658,92430.0,92429.0,1.55794702]
[1765533025413,0.00151658,92430.0,92429.0,0.55105661]
[1765533025608,0.00151658,92430.0,92429.0,0.61516371]
[1765533025867,0.00151658,92430.0,92429.0,0.618155]
[1765533027245,0.00151658,92430.0,92429.0,1.618155]
[1765533027677,0.00151658,92430.0,92429.0,1.57502702]
[1765533027890,0.00151658,92430.0,92429.0,1.618155]
[1765533029795,0.00151658,92430.0,92429.0,1.166255]
[1765533030003,0.00151658,92430.0,92429.0,0.618155]
[1765533030198,0.00151658,92430.0,92429.0,0.601075]
[1765533030537,0.00151658,92430.0,92429.0,0.56813661]
[1765533030746,0.00151658,92430.0,92429.0,0.618155]
[1765533031757,0.00353373,92430.0,92429.0,0.618155]
[1765533033185,0.00353373,92430.0,92429.0,0.64520264]
[1765533034710,0.00353373,92430.0,92429.0,0.62812264]
[1765533034954,0.00353373,92430.0,92429.0,0.64520264]
[1765533036323,0.00353373,92430.0,92429.0,0.62812264]
[1765533036523,0.00353373,92430.0,92429.0,0.64520264]
[1765533040989,0.00353373,92430.0,92429.0,0.59518425]
[1765533041837,0.00353373,92430.0,92429.0,0.57810425]
[1765533044185,0.00353373,92430.0,92429.0,0.53497627]
[1765533044783,0.00353373,92430.0,92429.0,0.57810425]
[1765533045721,0.00353373,92430.0,92429.0,0.62812264]
[1765533046408,0.00353373,92430.0,92429.0,1.62812264]
[1765533047900,0.0004,92460.0,92449.0,0.04312798]
[1765533048102,0.0004,92460.0,92449.0,0.33382798]
[1765533048306,0.0004,92460.0,92459.0,0.04312798]
[1765533048510,0.00051654,92460.0,92459.0,0.04312798]
[1765533048716,0.00051654,92460.0,92459.0,0.25944007]
[1765533048926,0.00051654,92460.0,92459.0,0.21631209]
[1765533049129,0.00051654,92460.0,92459.0,0.25944007]
[1765533049335,0.00051654,92460.0,92459.0,0.2602864]
[1765533049962,0.00551654,92460.0,92459.0,0.21715842]
[1765533050796,0.00951654,92460.0,92459.0,0.50785842]
[1765533051002,0.00951654,92460.0,92459.0,0.5509864]
[1765533057269,0.00551654,92460.0,92459.0,0.5509864]
[1765533057467,0.00751654,92460.0,92459.0,0.5509864]
[1765533057732,0.00251654,92460.0,92459.0,0.5509864]
[1765533058064,0.00351654,92460.0,92459.0,0.5509864]
[1765533058809,0.00138043,92460.0,92459.0,0.5509864]
[1765533059106,0.00438043,92460.0,92459.0,0.5509864]
[1765533059308,0.00638043,92460.0,92459.0,0.5509864]
[1765533060507,0.00638043,92460.0,92459.0,0.50785842]
[1765533061074,0.01081618,92454.0,92448.0,0.08099251]
[1765533061288,0.01158271,92454.0,92450.0,0.01081665]
[1765533061511,0.22790868,92454.0,92450.0,0.01081665]
[1765533061713,0.0108163,92453.0,92450.0,0.01081665]
[1765533061919,0.00076653,92453.0,92450.0,0.22714977]
[1765533062115,0.01158283,92453.0,92450.0,0.01081665]
[1765533062648,0.01158283,92453.0,92449.0,0.01081677]
[1765533062852,0.01158283,92453.0,92450.0,0.01081665]
[1765533063044,0.00076653,92453.0,92450.0,0.01081665]
[1765533063421,0.00076653,92453.0,92450.0,0.22714978]
[1765533063848,0.00176653,92453.0,92450.0,0.22714978]
[1765533064069,0.01258283,92453.0,92450.0,0.01081665]
[1765533064420,0.00076653,92453.0,92452.0,0.21632847]
[1765533064907,0.00176653,92453.0,92452.0,0.21632847]
[1765533065163,0.00376653,92453.0,92452.0,0.21632847]
[1765533065501,0.00176653,92453.0,92452.0,0.21632847]
[1765533065683,0.00376653,92453.0,92452.0,0.21632847]
[1765533065884,0.00276653,92453.0,92452.0,0.21632847]
[1765533066086,0.00376653,92453.0,92450.0,0.22714859]
[1765533066319,0.01458283,92453.0,92450.0,0.01081665]
[1765533066930,0.00276653,92453.0,92450.0,0.22714854]
[1765533067134,0.00376653,92453.0,92450.0,0.22714854]
[1765533067331,0.00060478,92451.0,92450.0,0.22714854]
[1765533069019,0.00160478,92451.0,92450.0,0.22714854]
[1765533069643,0.00360478,92451.0,92450.0,0.22714854]
[1765533072332,0.00360478,92451.0,92450.0,0.27027652]
[1765533072703,0.00360478,92451.0,92450.0,0.66685051]
[1765533072935,0.00360478,92451.0,92450.0,0.65886834]
[1765533073198,0.00360478,92451.0,92450.0,0.61574036]
[1765533073333,0.00360478,92451.0,92450.0,0.6892711]
[1765533073748,0.00360478,92451.0,92450.0,0.61184124]
[1765533074125,0.00360478,92451.0,92450.0,1.61184124]
[1765533074777,0.00260478,92451.0,92450.0,1.61184124]
[1765533074978,0.00060478,92451.0,92450.0,1.61184124]
[1765533075201,0.00060478,92451.0,92450.0,1.61484124]
[1765533075606,0.00060478,92451.0,92450.0,1.34284124]
[1765533075747,0.00060478,92451.0,92450.0,0.61284124]
[1765533075990,0.00060478,92451.0,92450.0,0.58190285]
[1765533076210,0.00060478,92451.0,92450.0,0.53877487]
[1765533076562,0.00060478,92451.0,92450.0,0.53677487]
[1765533076772,0.00060478,92451.0,92450.0,0.53877487]
[1765533077947,0.00060478,92451.0,92450.0,0.22799487]
[1765533078304,0.00060478,92451.0,92450.0,0.23099487]
[1765533078430,0.00060478,92451.0,92450.0,0.23014854]
[1765533078627,0.00060478,92451.0,92450.0,0.22714854]
[1765533078828,0.00137131,92451.0,92450.0,0.22814854]
[1765533079038,0.00137131,92451.0,92450.0,0.23014854]
[1765533079291,0.00137131,92451.0,92450.0,0.22914854]
[1765533079531,0.00137131,92451.0,92450.0,0.22714854]
[1765533079942,0.00137131,92451.0,92450.0,0.22814854]
[1765533083324,0.00060478,92451.0,92450.0,0.22814854]
[1765533083528,0.00060478,92451.0,92450.0,0.56282285]
[1765533084104,0.00060478,92451.0,92450.0,0.56182285]
[1765533084519,0.00060478,92451.0,92450.0,0.56282285]
[1765533084923,0.00060478,92451.0,92450.0,0.56182285]
[1765533085400,0.00060478,92451.0,92450.0,0.56282285]
[1765533086908,0.00060478,92451.0,92450.0,0.56182285]
[1765533088031,0.00160478,92451.0,92450.0,0.56182285]
[1765533088430,0.00060478,92451.0,92450.0,0.56182285]
[1765533089286,0.00160478,92451.0,92450.0,0.56182285]
[1765533089482,0.00051654,92460.0,92457.0,0.01081583]
[1765533089648,0.00051654,92460.0,92459.0,0.04312798]
[1765533090059,0.00077568,92460.0,92459.0,0.04312798]
[1765533090695,0.00177568,92460.0,92459.0,0.04312798]
[1765533091049,0.00077568,92460.0,92459.0,0.04312798]
[1765533091541,0.00377568,92460.0,92459.0,0.33467431]
[1765533091757,0.00377568,92460.0,92459.0,0.35258395]
[1765533091921,0.00377568,92460.0,92459.0,0.40260234]
[1765533092324,0.00377568,92460.0,92459.0,0.47999979]
[1765533093138,0.00277568,92460.0,92459.0,0.47999979]
[1765533093510,0.00377568,92460.0,92459.0,0.47999979]
[1765533093946,0.00077568,92460.0,92459.0,0.47999979]
[1765533094313,0.00077568,92460.0,92459.0,0.40360234]
[1765533095789,0.00077568,92460.0,92459.0,0.44311234]
[1765533097132,0.00077568,92460.0,92459.0,1.44311234]
[1765533099546,0.00077568,92460.0,92459.0,1.52041781]
[1765533100147,0.00077568,92460.0,92459.0,1.44311234]
[1765533102068,0.00077568,92460.0,92459.0,1.31045597]
[1765533102266,0.00077568,92460.0,92459.0,0.35358395]
[1765533102644,0.00077568,92460.0,92459.0,0.31045597]
[1765533102857,0.00077568,92460.0,92459.0,0.35358395]
[1765533105986,0.00077568,92460.0,92459.0,0.31045597]
[1765533108075,0.00077568,92460.0,92459.0,0.35358395]
[1765533108523,0.00077568,92460.0,92459.0,0.31045597]
[1765533108694,0.00077568,92460.0,92459.0,0.34968756]
[1765533109062,0.00077568,92460.0,92459.0,0.50801209]
[1765533109213,0.00154221,92460.0,92459.0,0.50801209]
[1765533109534,0.00154221,92460.0,92459.0,0.50701209]
[1765533109735,0.00154221,92460.0,92459.0,0.21631209]
[1765533110037,0.00154221,92460.0,92459.0,0.21731209]
[1765533110410,0.00154221,92460.0,92459.0,0.001]
[1765533111163,0.00154221,92460.0,92452.0,0.04948891]
[1765533111164,0.01081607,92455.0,92452.0,0.04948891]
[1765533111357,0.21632113,92456.0,92452.0,0.04948891]
[1765533111559,0.01081595,92456.0,92453.0,0.0108163]
[1765533111781,0.01081583,92457.0,92454.0,0.01081618]
[1765533112300,0.01081572,92458.0,92454.0,0.01081618]
[1765533112512,0.22841017,92460.0,92456.0,0.01081595]
[1765533112668,0.01081572,92458.0,92454.0,0.01081618]
[1765533112871,0.0337558,92459.0,92456.0,0.01081595]
[1765533113074,0.0229402,92459.0,92457.0,0.21631677]
[1765533113442,0.00128307,92460.0,92457.0,0.2271326]
[1765533113629,0.00128307,92460.0,92457.0,0.01081583]
[1765533114699,0.01209855,92460.0,92457.0,0.01081583]
[1765533114923,0.01409855,92460.0,92457.0,0.01081583]
[1765533115466,0.01509855,92460.0,92457.0,0.01081583]
[1765533115766,0.01509855,92460.0,92456.0,0.01081595]
[1765533115942,0.0108156,92459.0,92456.0,0.01081595]
[1765533116240,0.06162037,92459.0,92456.0,0.01081595]
[1765533116441,0.01081572,92458.0,92454.0,0.01081618]
[1765533116666,0.01081572,92458.0,92455.0,0.01081607]
[1765533117050,0.01081583,92457.0,92454.0,0.01081618]
[1765533117288,0.01081583,92457.0,92453.0,0.0108163]
[1765533117500,0.01081583,92457.0,92454.0,0.01081618]
[1765533117833,0.01081583,92457.0,92448.0,0.28205793]
[1765533117834,0.21632847,92452.0,92448.0,0.03867249]
[1765533118058,0.21632847,92452.0,92444.0,0.03867249]
[1765533118262,0.21632847,92452.0,92438.0,0.01081806]
[1765533118437,0.21632847,92452.0,92436.0,0.01081829]
[1765533118637,0.21632847,92452.0,92435.0,0.22718437]
[1765533118638,0.21632847,92452.0,92435.0,0.01081841]
[1765533118839,0.23340847,92452.0,92434.0,0.03867249]
[1765533119043,0.23340847,92452.0,92431.0,0.25504961]
[1765533119044,0.27791247,92452.0,92431.0,0.25504961]
[1765533119358,0.27791247,92452.0,92431.0,0.01081888]
[1765533119557,0.27791247,92452.0,92432.0,0.01081876]
[1765533120093,0.27891247,92452.0,92436.0,0.01081829]
[1765533120238,0.37612993,92452.0,92432.0,0.01081876]
[1765533120446,0.37612993,92452.0,92426.0,0.03867249]
[1765533120822,0.37612993,92452.0,92414.0,0.21641679]
[1765533120823,0.37812993,92452.0,92418.0,0.03867249]
[1765533121006,0.71884832,92452.0,92417.0,0.01082052]
[1765533121169,0.71884832,92452.0,92419.0,0.01082028]
[1765533121338,0.75133453,92452.0,92419.0,0.01082028]
[1765533121536,0.74933453,92452.0,92422.0,0.01081993]
[1765533121778,0.01082075,92415.0,92411.0,0.01082122]
[1765533121979,0.2272319,92417.0,92412.0,0.22724141]
[1765533121980,0.01082052,92417.0,92412.0,0.22724141]
[1765533122194,0.01082063,92416.0,92413.0,0.01082098]
[1765533122824,0.21637506,92433.0,92419.0,0.01082028]
[1765533123021,0.2907,92449.0,92425.0,0.03786722]
[1765533123230,0.01081888,92431.0,92427.0,0.01081934]
[1765533123435,0.044504,92443.0,92420.0,0.01082016]
[1765533123436,0.21639154,92426.0,92420.0,0.01082016]
[1765533123641,0.01081981,92423.0,92420.0,0.01082016]
[1765533123815,0.01081993,92422.0,92418.0,0.22722752]
[1765533124015,0.01081993,92422.0,92418.0,0.0108204]
[1765533124552,0.01082063,92416.0,92413.0,0.00011658]
[1765533124751,0.01082063,92416.0,92413.0,0.01093756]
[1765533125117,0.01082063,92416.0,92413.0,0.00011658]
[1765533125318,0.21641508,92415.0,92413.0,0.00011658]
[1765533125547,0.28674806,92415.0,92413.0,0.00011658]
[1765533125751,0.07033298,92415.0,92413.0,0.00011658]
[1765533126117,0.01082028,92419.0,92413.0,0.00011658]
[1765533126319,0.001,92433.0,92424.0,0.0108197]
[1765533126520,0.02789899,92430.0,92428.0,0.02704764]
[1765533126720,0.2163823,92429.0,92428.0,0.02704764]
[1765533127130,0.28624939,92429.0,92428.0,0.02704764]
[1765533127776,0.01081958,92425.0,92420.0,0.2907]
[1765533127972,0.01081958,92425.0,92424.0,0.02704764]
[1765533128318,0.01081981,92423.0,92420.0,0.2907]
[1765533128437,0.21639869,92422.0,92420.0,0.2907]
[1765533128747,0.01158634,92423.0,92420.0,0.2907]
[1765533128953,0.01158634,92423.0,92419.0,0.01082028]
[1765533129777,0.01081993,92422.0,92418.0,0.3015204]
[1765533129983,0.00076653,92423.0,92421.0,0.21640103]
[1765533130594,0.00076653,92423.0,92420.0,0.30152016]
[1765533131223,0.22898309,92423.0,92420.0,0.2907]
[1765533131398,0.21640087,92422.0,92420.0,0.2907]
[1765533131597,0.2272208,92422.0,92418.0,0.0108204]
[1765533131806,0.0222623,92421.0,92418.0,0.0108204]
[1765533132226,0.0222623,92421.0,92413.0,0.00011658]
[1765533132227,0.01082063,92416.0,92413.0,0.00011658]
[1765533133049,0.22723552,92416.0,92413.0,0.00011658]
[1765533133237,0.01082063,92416.0,92413.0,0.29081658]
[1765533133419,0.01082063,92416.0,92413.0,0.30163756]
[1765533133618,0.01182005,92421.0,92418.0,0.0108204]
[1765533133619,0.001,92421.0,92418.0,0.0108204]